Cogmind - Beta 13 @@@ ROGUE MODE // 2024.04.07 @ 19:53:03 Player: dohmmass Result: Destroyed by 71-ZPS(R) with Subdweller Machine Gun Performance ------------- Evolutions (0) 0 Regions Visited (3) 600 Robots Destroyed (22) 110 Value Destroyed (516) 516 Prototype IDs (1) 20 Alien Tech Used (0) 0 Bonus (162) 162 TOTAL SCORE: 1408 Bonus ------- Follower Combat Kills 180 Friendly Fire -18 Cogmind --------- Core Integrity 0/250 Matter 274/300 Energy 198/200 System Corruption 0% Temperature Cool (0) Movement Rolling (95) Location -10/Subcaves Parts ------- > --- POWER (1) -------- Subdweller Power Source > --- PROPULSION (2) --- Wheel Subdweller Monowheel > --- UTILITY (2) ------ Signal Interpreter Thief Drone Bay (3/3) > --- WEAPON (2) ------- Subdweller Machine Gun Subdweller Machine Gun > --- INVENTORY (5) ---- Scrap Shield Scrap Shield Subdweller Machine Gun Peak State ------------ > --- POWER ------------ Subdweller Power Source > --- PROPULSION ------- Subdweller Monowheel Subdweller Monowheel > --- UTILITY ---------- Signal Interpreter Thief Drone Bay > --- WEAPON ----------- Subdweller Beam Cannon Barrage Gun > --- INVENTORY -------- Subdweller Power Source Scrap Shield Scrap Shield [Rating: 20] Favorites ----------- Power Subdweller Power Source Engine Subdweller Power Source Propulsion Subdweller Monowheel Wheel Subdweller Monowheel Utility Signal Interpreter Device Thief Drone Bay Processor Signal Interpreter Weapon Subdweller Machine Gun Energy Gun Particle Gun Energy Cannon Subdweller Beam Cannon Ballistic Gun Subdweller Machine Gun Special Weapon Mining Laser Build | -11 -10 -10 -10 ------- Run | Yrd Mat Min Sub Slots Evolved . | . . . . Power . | . . . . Propulsion . | . . . . Utility . | . . . . Weapon . | . . . . Parts Attached 26 | 5 3 1 17 Power 4 | 1 1 . 2 Engine 4 | 1 1 . 2 Core . | . . . . Reactor . | . . . . Propulsion 8 | 2 . . 6 Treads . | . . . . Leg . | . . . . Wheel 8 | 2 . . 6 Hover . | . . . . Flight . | . . . . Utility 3 | . 1 1 1 Device 2 | . . 1 1 Storage . | . . . . Processor 1 | . 1 . . Hackware . | . . . . Protection . | . . . . Artifact . | . . . . Weapon 11 | 2 1 . 8 Energy Gun 1 | . . . 1 Energy Cannon 1 | . . . 1 Ballistic Gun 7 | 2 . . 5 Ballistic Cannon . | . . . . Launcher . | . . . . Special Weapon 2 | . 1 . 1 Impact Weapon . | . . . . Slashing Weapon . | . . . . Piercing Weapon . | . . . . Special Melee Weapon . | . . . . Unidentified Prototypes 1 | . . 1 . Parts Lost 6 | . 2 . 4 Power 2 | . 1 . 1 Propulsion 2 | . . . 2 Utility . | . . . . Weapon 2 | . 1 . 1 Highest Loss Streak 2 | . 1 . 2 To Critical Strikes . | . . . . Average Slot Usage (%) 89 | . 71 85 94 Engine 13 | . 13 14 13 Wheel 25 | . 28 28 24 Device 8 | . . . 12 Processor 12 | . 1 14 14 Energy Gun 1 | . . . 1 Energy Cannon 3 | . . . 4 Ballistic Gun 20 | . 21 14 21 Special Weapon 2 | . 6 14 . Naked Turns . | . . . . Heaviest Build 21 | 7 9 8 21 Greatest Support 40 | 26 26 26 40 Greatest Overweight (x) 6 | . . . 6 Average Overweight (x) . | . . . . Largest Inventory Capacity 5 | 5 5 5 5 Average Capacity 5 | 5 5 5 5 Most Carried 5 | 5 4 5 5 Average Carried 4 | 1 1 4 4 Final Capacity 5 | 5 5 5 5 Final Carried 5 | . 4 4 5 Class Distribution -------------------- 59% | Scavenger-Mutant 40% | Mutant Dominant Class ---------------- Mutant | -10/Materials Mutant | -10/Mines Scavenger-Mutant | -10/Subcaves Resources | -11 -10 -10 -10 ----------- Run | Yrd Mat Min Sub Matter Collected 756 | 250 118 98 290 Remotely . | . . . . Salvage Created 583 | . 215 . 368 Parts 55 | . 27 . 28 Haulers Intercepted . | . . . . Recyclers Shooed . | . . . . Parts Field Recycled . | . . . . Retrieved Matter . | . . . . Parts Self-Destructed 14 | . . . 14 Prevented . | . . . . Kills | -11 -10 -10 -10 ------- Run | Yrd Mat Min Sub Combat Hostiles Destroyed 19 | . 10 . 9 Guns 15 | . 10 . 5 Cannons 4 | . . . 4 Classes Destroyed 6 | . 4 . 2 Operator 1 | . 1 . . Turret 1 | . . . 1 Watcher 1 | . 1 . . Swarmer 10 | . 9 . 1 Grunt 1 | . 1 . . Subdweller 8 | . . . 8 Best Kill Streak 4 | . 4 . 2 Combat Bots Only 4 | . 4 . 2 Max Kills in Single Turn 2 | . 2 . 1 Gunslinging 1 | . 1 . . Exploded . | . . . . Melee . | . . . . Uniques/NPCs Destroyed . | . . . . Combat | -11 -10 -10 -10 -------- Run | Yrd Mat Min Sub Hostile Shots Fired 138 | . 63 5 70 Missed 45 | . 21 4 20 Damage Taken 1162 | . 357 11 794 Core 253 | . 65 . 188 Absorbed by Shields . | . . . . Core Remaining (%) 100 | 100 . . . Volleys Fired 101 | . 37 9 55 Largest 2 | . 2 2 2 Hottest 200 | . 120 120 200 Shots Fired 168 | . 62 10 96 Gun 127 | . 60 2 65 Cannon 29 | . . . 29 Launcher . | . . . . Special 12 | . 2 8 2 Kinetic 118 | . 60 2 56 Thermal 50 | . 2 8 40 Explosive . | . . . . Electromagnetic . | . . . . Robot Hit Streak 14 | . 4 2 14 Robot Miss Streak 4 | . 4 1 3 Penetration Max . | . . . . Secondary Targets 3 | . 2 . 1 Max Gunslinging Chain 1 | . 1 . 1 Shots Hit Robots 76 | . 26 2 48 Core Hits 33 | . 14 1 18 Critical Kills 1 | . . . 1 Critical Parts Destroyed . | . . . . Critical Strikes 1 | . . . 1 Destroy 1 | . . . 1 Melee Attacks . | . . . . Impact . | . . . . Slashing . | . . . . Piercing . | . . . . Sneak Attacks . | . . . . Combat Hostiles . | . . . . Follow-up Attacks . | . . . . Damage Inflicted 1362 | . 340 27 995 Guns 987 | . 340 27 620 Cannons 327 | . . . 327 Explosions . | . . . . Melee . | . . . . Ramming . | . . . . Kinetic 875 | . 340 27 508 Thermal 487 | . . . 487 Explosive . | . . . . Electromagnetic . | . . . . Impact . | . . . . Slashing . | . . . . Piercing . | . . . . Highest Corruption . | . . . . Average Corruption . | . . . . Corruption Purged . | . . . . Corruption Blocked . | . . . . Overload Shots . | . . . . Overflow Damage . | . . . . Projectiles . | . . . . Explosions . | . . . . Melee . | . . . . Knockbacks . | . . . . Impact . | . . . . Kinetic . | . . . . Secondary . | . . . . Self-Inflicted Damage . | . . . . Shots . | . . . . Rammed . | . . . . Targets Rammed . | . . . . Kicked . | . . . . Crushed . | . . . . Highest Temperature 100 | . 20 100 38 Average Temperature 28 | . 11 48 18 Received Heat Transfer 123 | . 18 6 99 Siege Activations . | . . . . Robots Corrupted . | . . . . Combat Hostiles . | . . . . Parts Fried . | . . . . Impact Corruptions . | . . . . Robots Melted . | . . . . Combat Hostiles . | . . . . Parts Melted 2 | . . . 2 Heat Transferred 803 | . . . 803 Parts Sabotaged . | . . . . Parts Stolen . | . . . . Parts Stripped . | . . . . Power Chain Reactions . | . . . . Alert | -11 -10 -10 -10 ------- Run | Yrd Mat Min Sub Peak Influence 280 | . 280 89 . Initial 31 | . . 31 . Average 124 | . 181 72 . Maximum Alert Level 1 | . 1 . . Low Security (%) 76 | 100 53 100 . Level 1 23 | . 46 . . Level 2 . | . . . . Level 3 . | . . . . Level 4 . | . . . . Level 5 . | . . . . High Security . | . . . . Max Security . | . . . . Squads Dispatched 1 | . 1 . . Investigation . | . . . . Extermination . | . . . . Reinforcement 1 | . 1 . . Assault . | . . . . Garrison . | . . . . Intercept . | . . . . Searches Triggered . | . . . . Construction Impeded . | . . . . Haulers Reinforced . | . . . . Active Scanning Responses . | . . . . Cargo Convoy Interrupts . | . . . . Stealth | -11 -10 -10 -10 --------- Run | Yrd Mat Min Sub Distress Signals 2 | . 2 . . Communications Jammed . | . . . . Distress Signals . | . . . . Times Spotted 63 | . 14 2 47 Peak Tracking Total 5 | . 5 2 3 Tactical Retreats 3 | . . . 3 Traps | -11 -10 -10 -10 ------- Run | Yrd Mat Min Sub Traps Triggered 1 | . . . 1 Indirectly . | . . . . Trap Hack Attempts . | . . . . Triggered . | . . . . Disarmed . | . . . . Reprogrammed . | . . . . Reused . | . . . . Traps Extracted . | . . . . Installed . | . . . . Triggered . | . . . . Machines | -11 -10 -10 -10 ---------- Run | Yrd Mat Min Sub Machines Disabled 2 | . . . 2 Max in Single Turn 1 | . . . 1 Machines Repaired . | . . . . Machines Dismantled . | . . . . Machines Sabotaged . | . . . . Overloaded Fab Kills . | . . . . Hacking | -11 -10 -10 -10 --------- Run | Yrd Mat Min Sub Machines Accessed 1 | . . 1 . Terminals . | . . . . Fabricators . | . . . . Repair Stations . | . . . . Recycling Units . | . . . . Scanalyzers . | . . . . Garrison Access . | . . . . Total Hacks 1 | . . 1 . Successful 1 | . . 1 . Failed . | . . . . Catastrophic . | . . . . Database Lockouts . | . . . . Manual . | . . . . Terminals . | . . . . Fabricators . | . . . . Repair Stations . | . . . . Recycling Units . | . . . . Scanalyzers . | . . . . Garrison Access . | . . . . Terminal Hacks 1 | . . 1 . Open Door 1 | . . 1 . Fabricator Hacks . | . . . . Repair Station Hacks . | . . . . Recycling Unit Hacks . | . . . . Scanalyzer . | . . . . Garrison Access Hacks . | . . . . Unauthorized Hacks . | . . . . Terminals . | . . . . Fabricators . | . . . . Repair Stations . | . . . . Recycling Units . | . . . . Scanalyzers . | . . . . Garrison Access . | . . . . Data Cores Recovered 1 | . 1 . . Used . | . . . . Hacking Detections . | . . . . Full Trace Events . | . . . . Feedback Events . | . . . . Feedback Blocked . | . . . . Robot Schematics Acquired . | . . . . Robots Built . | . . . . Authchips . | . . . . Time . | . . . . Total Robot Build Rating . | . . . . Part Schematics Acquired . | . . . . Parts Built . | . . . . Authchips . | . . . . Time . | . . . . Total Part Build Rating . | . . . . Parts Repaired . | . . . . Time . | . . . . Parts Recycled . | . . . . Recycled Matter . | . . . . Retrieved Matter . | . . . . Retrieved Components . | . . . . Parts Scanalyzed . | . . . . Part Schematics Acquired . | . . . . Parts Damaged . | . . . . Bothacking | -11 -10 -10 -10 ------------ Run | Yrd Mat Min Sub Used RIF Installer . | . . . . Robots Hacked . | . . . . Non-combat . | . . . . Combat . | . . . . Robot Hacks Applied . | . . . . Relay Couplers Released . | . . . . Fabnet Peak Effective % . | . . . . Robots Rewired . | . . . . Allies Hacked . | . . . . Hacks Repelled . | . . . . Allies | -11 -10 -10 -10 -------- Run | Yrd Mat Min Sub Total Allies 3 | . . 3 . Largest Group 3 | . . 3 3 Highest-Rated Group 40 | . . 40 40 Highest-Rated Ally 16 | . . 16 16 Total Orders 2 | . . . 2 RETURN 2 | . . . 2 Ally Attacks 53 | . . 5 48 Total Damage 503 | . . 75 428 Kills 7 | . . 2 5 Allies Corrupted . | . . . . Allies Melted . | . . . . Intel | -11 -10 -10 -10 ------- Run | Yrd Mat Min Sub Robot Analysis Total . | . . . . Derelict Logs Recovered 2 | . . . 2 Drone Launches 9 | . . . 9 Drone Recoveries 9 | . . . 9 Exploration | -11 -10 -10 -10 ------------- Run | Yrd Mat Min Sub Turns Passed 2817 | 30 402 367 2018 Spaces Moved 2390 | 27 312 346 1705 Core 12 | 9 . . 3 Treads . | . . . . Legs . | . . . . Wheels 2378 | 18 312 346 1702 Hover . | . . . . Flight . | . . . . Fastest Speed 50 | 50 90 90 90 Average Speed 99 | 76 90 90 104 Slowest Speed 350 | 90 90 90 350 Overloaded Moves . | . . . . Propulsion Burnouts . | . . . . Robots Hopped . | . . . . Cave-ins Triggered . | . . . . Exploration Rate (%) 52 | 3 72 64 69 Regions Visited 3 Branch Regions 2 Pre-discovered Areas 1 | . . . 1 Known Exits Taken 2 | . 1 1 . Unknown Exits Taken 1 | 1 . . . Scrap Searched 12 | . . 1 11 Spaces Dug 1 | . 1 . . Terrain Destroyed 5 | . 2 . 3 Melee . | . . . . Projectile 5 | . 2 . 3 AOE . | . . . . Terrain Rammed . | . . . . Walls Destroyed . | . . . . Machines Disabled . | . . . . Actions | -11 -10 -10 -10 --------- Run | Yrd Mat Min Sub Total 2631 | 36 367 376 1852 Wait 63 | . 9 18 36 Move 2387 | 26 311 345 1705 Hop . | . . . . Pick Up 34 | 5 7 1 21 Fast Attach . | . . . . Attach 17 | 5 3 1 8 Detach 1 | . . 1 . Swap 9 | . . . 9 Drop 19 | . . 1 18 Fire 101 | . 37 9 55 Melee . | . . . . Ram . | . . . . Kick . | . . . . Crush . | . . . . Escape Stasis . | . . . . Rewire . | . . . . Trap . | . . . . Miscellaneous . | . . . . Route ------- -11/Scrapyard -10/Materials (discovered 4 exits: *Mat x3 / *Min) -10/Mines (discovered 2 exits: *Mat / *Sub) -10/Subcaves (discovered 3 exits: *Mat x2 / *Rec) History --------- Turn | Location | Event 19 | -11/Scrapyard | Discovered new exit (range 14) 31 | -11/Scrapyard | Entered Materials 183 | -10/Materials | Discovered new exit (range 4) 225 | -10/Materials | Discovered new exit (range 13) 304 | -10/Materials | Discovered new exit (range 16) 309 | -10/Materials | Build established: Mutant 388 | -10/Materials | Identified exit to Materials 414 | -10/Materials | Discovered new exit (range 10) 433 | -10/Materials | Identified exit to Mines 433 | -10/Materials | Entered Mines 434 | -10/Mines | Assisted by bots powering up and referring to "LRC-V3" 478 | -10/Mines | Discovered exit to Materials (range 8) 488 | -10/Mines | Found the Drone Emporium 491 | -10/Mines | Found Prototype Device 492 | -10/Mines | Identified Thief Drone Bay 795 | -10/Mines | Discovered new exit (range 3) 799 | -10/Mines | Identified exit to Subcaves 800 | -10/Mines | Entered Subcaves 800 | -10/Subcaves | Accompanied by 3 allies 1019 | -10/Subcaves | Discovered new exit (range 13) 1064 | -10/Subcaves | Identified exit to Materials 1285 | -10/Subcaves | Core integrity fell below 50% 1410 | -10/Subcaves | Core integrity fell below 20% 1458 | -10/Subcaves | Build established: Scavenger-Mutant 1802 | -10/Subcaves | Discovered new exit (range 8) 1847 | -10/Subcaves | Identified exit to Recycling 2557 | -10/Subcaves | Shifting Twisted Machinery released Piercing Trap 2564 | -10/Subcaves | Shifting Twisted Machinery released Sub. Monowheel 2569 | -10/Subcaves | Discovered exit to Materials (range 14) 2757 | -10/Subcaves | Shifting Twisted Machinery released Sub. Beam Cannon 2765 | -10/Subcaves | Shifting Twisted Machinery released Sub. Beam Cannon 2818 | -10/Subcaves | Destroyed by 71-ZPS(R) with Subdweller Machine Gun Last Messages --------------- 01971_ Found 12 Matter. 01972_ Acquired 12 matter. 01974_ Searching scrap... 01974_ Found Shrapnel Trap. 01974_ Found 32 Matter. 01975_ Acquired 8 matter. 02290_ Sub. Monowheel shoots sparks and powers down. 02291_ Dropped Broken Sub. Monowheel. 02349_ 2T-2DE(u) builds Twisted Machinery. 02409_ Dropped Sub. Machine Gun. 02409_ Acquired Wheel. 02412_ Acquired Sub. Machine Gun. Piercing Trap falls loose from the Twisted Machinery. Sub. Monowheel falls loose from the Twisted Machinery. 02569_ EXIT=FOUND: MATERIALS Sub. Beam Cannon falls loose from the Twisted Machinery. Map ----- +----------------------------------------------------+ | ????????????????????????????????????# #?????? | | ????????????????????????????????????# #?????? | | ????????????????????????????????????# ##?????? | | ???????????????????????????????????## ##?????? | | ???????????????????????????????????# #?????? | | ??????????????????????????????????## #?????? | | ????????????????????????????????### < #?????? | | ???????#####???????###??????##### #?????? | | ??????## ##????### ##???## ## #?????? | | ??????# ##???# ##### #?????? | | ??????# ##???# #?????? | | ??????# ######## ##?????? | | ??????# ##?# ##??????? | | #?????## #?# #### ##???????? | | ######## ### #?# #??## ###????????? | | # ## #?## ## #??# ##?????????? | | ##?# ####### ##??# ###???????? | | # #?## #?????###??## """##??????? | | ## ## ##???# #????????### """""#??????? | | ######## ##????#####??????# """""#??????? | | ## #?# #?###### ####???# ##""""" #??????? | | #?## ### ## "##??# ###""### ##?????? | | #?# "#??# #?#""#?? ##????? | | ### #### ######## #????? | | #?## ##R "&## ## #?????? | | ### #??# ### @"" " " ="" #??????? | | #??###?## #?# ### """""""" ##?????? | | ???????# #?####?# """##"""# # # ##????? | | ######?# ##?????# ############ "#????? | | #?## #????# ##?????##### #????? | | ###### #????# #????### ] "#????? | | ## ######????#####????# """#????? | | #??????????????????# ##" ##????? | | #??????????????????## ""#####?????? | | ## ###?????????????????###" ##??????? | | ##### #????????????????#### ##?????? | | #### ##?????? ???????#"## #?????? | | ## ##????## ??????## " #?????? | | ## ##????# ?????# " "]" #?????? | | #?# #????? ???????# " " #?????? | | #### ##??? ????????# " " " ##?????? | | ###### #??? ?????????#" " ###??????? | | #??## #??? #??????????# ##????????? | | #??# ##??# ##?????????# #?????????? | | ##??## #### ####??????## ###?????????? | | #????## #?## #####?#### ###???????????? | | #?????# ### ## ###?????????????? | | ###???# ## #??????????????? | | ##### ## #??????????????? | | ## ### #??????????????? | +----------------------------------------------------+ Best States ------------- Heat Dissipation 25 Energy Generation 15 Energy Capacity 250 Matter Stores 300 Matter Capacity 300 Sight Range 16 Terrain Scan Density 10 Evasion (%) 42 Item Schematics ----------------- None Robot Schematics ------------------ None Fabricated ------------ Nothing Alien Tech Used ----------------- None Achievements -------------- None Challenges ------------ None Game ------ Seed SupersonicSigixNullifier Manual? 0 Play Time 00:23:27 Cumulative 26.8 hours Start 2024.04.07 @ 19:31:48 End 2024.04.07 @ 19:53:03 Sessions 1 Manual Loads 0 Difficulty Rogue Special Mode None Game No. 55 Rogue 55 Adventurer 0 Explorer 0 Win Type - Total 0 Types 0/0/0/0/0/0/0/0/0 Lore% 16 Gallery% 32 Achievement% 22 Wizard Run 0 Options --------- Layout 1 ASCII 0 Keyboard 0 Movement Mouse Keybinds 0 Fullscreen 1 Font 24/Smallcaps Map View 50x35 Zoom Use 0% Tactical HUD 1 Map Filters NONE Filters NONE Steam 1 RUN: b37510d2-0c01-4058-b953-332e3255b6b9